fUSD/lending_fUSD_20240502
["ID","MTS","AMOUNT","RATE_DAILY","PERIOD"]
[325255021,1714663847797,-155.0,0.0003538,2]
[325255022,1714663847808,-1605.82144297,0.0003538,5]
[325255023,1714663847818,-831.3416,0.00036153,10]
[325255024,1714663847828,-7989.05344263,0.00036161,4]
[325255025,1714663847837,-884.80886652,0.00036161,4]
[325255026,1714663847846,-1055.53945852,0.00036161,4]
[325255027,1714663847856,-155.0,0.00036161,2]
[325255028,1714663847865,-2627.05983859,0.00036161,4]
[325255029,1714663847876,-158.15720844,0.00036161,4]
[325255030,1714663847885,-884.10095618,0.00036161,4]
[325255031,1714663847894,-1183.1,0.00036162,7]
[325255032,1714663847903,-563.78410782,0.00036162,4]
[325255033,1714663847913,-572.77425807,0.00036162,7]
[325255034,1714663847922,-234.54402154,0.00036162,4]
[325255035,1714663847931,-431.95467805,0.00036162,4]
[325255036,1714663847940,-1739.53742045,0.00036162,4]
[325255037,1714663847950,-9583.82270023,0.00036162,3]
[325255058,1714664346292,15308.40658706,0.0001,2]
[325255060,1714664436330,13198.99225787,0.0001,2]
[325255121,1714665033167,-2217.32024188,0.00012876,2]
[325255122,1714665033177,-1295.14825201,0.00012876,2]
[325255123,1714665033187,-5210.91464732,0.00012877,2]
[325255124,1714665033197,-150.0,0.00012897,2]
[325255125,1714665033206,-167.0,0.00014187,2]
[325255126,1714665033216,-1000.0,0.00017147,2]
[325255127,1714665033225,-361.9249026,0.00017148,2]
[325255128,1714665033235,-6493.2112,0.000186,2]
[325255129,1714665033244,-952.0,0.000187,2]
[325255130,1714665033253,-155.0,0.000209,2]
[325255131,1714665033263,-186.24164303,0.00021642,30]
[325255132,1714665033272,-1785.11165952,0.00021643,2]
[325255133,1714665033281,-346.12,0.00021644,2]
[325255134,1714665033290,-785.62293984,0.00022999,2]
[325255135,1714665033300,-11886.23872382,0.00023,2]
[325255136,1714665033310,-1250.0,0.00023,3]
[325255137,1714665033319,-1300.0,0.00025,3]
[325255138,1714665033330,-250.0,0.000274,2]
[325255140,1714665033339,-704.62,0.00027536,2]
[325255142,1714665033349,-2053.18,0.00027579,2]
[325255144,1714665033358,-250.0,0.00027616,2]
[325255146,1714665033368,-200.0,0.00027678,2]
[325255148,1714665033377,-150.0,0.00027692,2]
[325255151,1714665033387,-346.12,0.00027714,2]
[325255153,1714665033397,-193.85,0.00028054,120]
[325255155,1714665033406,-176.36,0.00028133,2]
[325255157,1714665033415,-952.35,0.00028187,3]
[325255159,1714665033424,-250.0,0.00028229,2]
[325255160,1714665033435,-247.4,0.00028468,2]
[325255162,1714665033444,-176.36,0.000285,2]
[325255164,1714665033453,-176.36,0.00028866,2]
[325255167,1714665033463,-176.36,0.00029233,2]
[325255168,1714665033472,-6167.826,0.00029236,2]
[325255170,1714665033481,-150.57,0.00029473,2]
[325255172,1714665033490,-176.36,0.00029599,2]
[325255174,1714665033500,-1183.84,0.00029621,2]
[325255176,1714665033509,-200.0,0.00029621,2]
[325255179,1714665033519,-284.05,0.00029621,2]
[325255181,1714665033528,-500.0,0.00029621,2]
[325255183,1714665033538,-1183.84,0.00029629,2]
[325255184,1714665033547,-1183.84,0.00029637,2]
[325255186,1714665033556,-1183.84,0.00029645,2]
[325255188,1714665033569,-1183.84,0.00029653,2]
[325255191,1714665033586,-1183.84,0.0002966,2]
[325255193,1714665033596,-1183.84,0.00029668,2]
[325255194,1714665033605,-1183.84,0.00029676,2]
[325255195,1714665033615,-1183.84,0.00029684,2]
[325255196,1714665033624,-1183.84,0.00029692,2]
[325255197,1714665033633,-1183.84,0.00029699,2]
[325255198,1714665033642,-1183.84,0.00029707,2]
[325255199,1714665033651,-1183.84,0.00029715,2]
[325255200,1714665033661,-1183.84,0.00029723,2]
[325255201,1714665033672,-1183.84,0.00029731,2]
[325255202,1714665033684,-1030.38846551,0.00029736,2]
[325255203,1714665033693,-1183.84,0.00029738,2]
[325255204,1714665033702,-1183.84,0.00029746,2]
[325255205,1714665033711,-1183.84,0.00029754,2]
[325255206,1714665033721,-1183.84,0.00029762,2]
[325255207,1714665033731,-1183.84,0.0002977,2]
[325255208,1714665033741,-166.35,0.00029841,2]
[325255209,1714665033751,-180.0,0.0003064,2]
[325255210,1714665033761,-247.4,0.00032027,2]
[325255211,1714665033770,-210.39,0.00032096,120]
[325255212,1714665033779,-1000.0,0.00032544,2]
[325255213,1714665033789,-671.48,0.00032544,2]
[325255214,1714665033799,-962.26005334,0.00032545,4]
[325255215,1714665033809,-346.12,0.00033785,2]
[325255216,1714665033818,-1030.98,0.0003434,10]
[325255217,1714665033828,-24004.54160499,0.0003435,4]
[325255218,1714665033838,-515.691039,0.00034354,120]
[325255219,1714665033848,-152.0,0.00034909,3]
[325255220,1714665033859,-50000.0,0.00035,15]
[325255221,1714665033868,-50000.0,0.00035,25]
[325255222,1714665033878,-5000.0,0.00035,30]
[325255223,1714665033888,-193.85,0.00035067,120]
[325255224,1714665033897,-544.26457201,0.0003538,120]
[325255225,1714665033907,-866.58019575,0.0003538,4]
[325255226,1714665033916,-273.8960083,0.0003538,10]
[325255227,1714665033926,-270.51753243,0.0003538,2]
[325255228,1714665033938,-281.75391434,0.0003538,4]
[325255229,1714665033947,-1253.75299745,0.0003538,4]
[325255230,1714665033956,-166.22302118,0.0003538,4]
[325255231,1714665033966,-37569.73278041,0.00035381,120]
[325255232,1714665033975,-247.4,0.00035585,2]
[325255233,1714665033984,-500.0,0.00035616,7]
[325255234,1714665033994,-1000.0,0.00035872,15]
[325255235,1714665034003,-500.0,0.00035872,10]
[325255236,1714665034013,-200.0,0.00035872,10]
[325255237,1714665034022,-1033.9173,0.000359,2]
[325255238,1714665034032,-308.76784163,0.000359,2]
[325255239,1714665034045,-3497.19944605,0.00035909,2]
[325255240,1714665034055,-500.0,0.00035999,7]
[325255241,1714665034065,-500.0,0.00035999,7]
[325255242,1714665034075,-50000.0,0.00036,16]
[325255243,1714665034084,-50000.0,0.00036,26]
[325255244,1714665034094,-150000.0,0.00036,7]
[325255245,1714665034104,-5000.0,0.00036,30]
[325255246,1714665034115,-504.90138445,0.00036,30]
[325255247,1714665034125,-308.76784163,0.00036019,2]
[325255248,1714665034135,-1560.03868352,0.00036042,2]
[325255249,1714665034145,-190.0091,0.00036062,2]
[325255250,1714665034155,-4229.26426593,0.00036064,8]
[325255251,1714665034165,-210.39,0.00036108,120]
[325255252,1714665034175,-308.76784163,0.00036139,2]
[325255253,1714665034187,-500.0,0.00036157,7]
[325255254,1714665034196,-12081.41647345,0.00036158,4]
[325255255,1714665034206,-178.35768846,0.0003616,2]
[325255256,1714665034215,-1632.39983048,0.0003616,2]
[325255257,1714665034224,-5000.0,0.00036161,4]
[325255258,1714665034233,-247.29624255,0.00036161,4]
[325255259,1714665034242,-6755.24293226,0.00036161,4]
[325255260,1714665034251,-669.41635846,0.00036161,4]
[325255261,1714665034261,-258.37937648,0.00036161,4]
[325255262,1714665034270,-706.86968625,0.00036161,4]
[325255263,1714665034279,-2499.33914115,0.00036161,2]
[325255264,1714665034289,-285.87400056,0.00036161,2]
[325255265,1714665034298,-5920.22977168,0.00036161,4]
[325255266,1714665034308,-486.08776914,0.00036161,5]
[325255267,1714665034317,-216.15767464,0.00036161,4]
[325255268,1714665034328,-155.0,0.00036161,4]
[325255269,1714665034337,-200.40599956,0.00036161,4]
[325255270,1714665034348,-155.0,0.00036161,4]
[325255271,1714665034357,-2216.64210205,0.00036161,2]
[325255272,1714665034366,-325.87564899,0.00036161,4]
[325255273,1714665034376,-521.0,0.00036161,4]
[325255274,1714665034385,-172.3251,0.00036161,2]
[325255275,1714665034395,-14594.45823933,0.00036161,4]
[325255276,1714665034404,-2220.38,0.00036161,7]
[325255277,1714665034414,-2606.85980791,0.00036162,4]
[325255278,1714665034423,-26658.34980765,0.00036162,5]
[325255279,1714665034434,-243.64207938,0.00036162,4]
[325255280,1714665034443,-950.39765068,0.00036162,4]
[325255281,1714665034452,-1211.30074394,0.00036162,4]
[325255282,1714665034462,-887.86064167,0.00036162,4]
[325255283,1714665034471,-317.67550535,0.00036162,4]
[325255284,1714665034481,-377.0367828,0.00036162,4]
[325255285,1714665034490,-3116.42106464,0.00036162,15]
[325255286,1714665034499,-403.69822921,0.00036162,2]
[325255287,1714665034509,-408.81148644,0.00036162,4]
[325255288,1714665034518,-155.0,0.00036162,4]
[325255289,1714665034528,-8252.44488946,0.00036162,4]
[325255290,1714665034537,-4867.22116506,0.00036162,2]
[325255291,1714665034546,-500.0,0.00036162,5]
[325255292,1714665034558,-1605.82144297,0.00036162,5]
[325255293,1714665034570,-155.0,0.00036162,2]
[325255294,1714665034580,-155.0,0.00036162,2]
[325255295,1714665034590,-15652.22598365,0.00036162,3]
[325255296,1714665034599,-500.0,0.00036162,2]
[325255297,1714665034609,-500.0,0.00036162,2]
[325255298,1714665034619,-500.0,0.00036162,2]
[325255299,1714665034628,-500.0,0.00036162,2]
[325255300,1714665034638,-210.05,0.00036162,7]
[325255301,1714665034647,-151.0,0.00036162,7]
[325255302,1714665034657,-888.0,0.00036162,3]
[325255303,1714665034667,-239.78320612,0.00036163,4]
[325255304,1714665034676,-151.0,0.00036163,7]
[325255305,1714665034688,-264.77,0.00036163,7]
[325255306,1714665034697,-37981.13828103,0.00036163,5]
[325255307,1714665034706,-281.0,0.00036164,5]
[325255308,1714665034716,-335.11624507,0.00036164,30]
[325255309,1714665034726,-500.63632096,0.00036164,7]
[325255310,1714665034736,-500.0,0.00036164,7]
[325255311,1714665034746,-500.0,0.00036164,7]
[325255312,1714665034756,-305.09097243,0.00036164,7]
[325255313,1714665034765,-500.0,0.00036164,7]
[325255314,1714665034775,-500.0,0.00036164,7]
[325255315,1714665034785,-500.0,0.00036164,7]
[325255316,1714665034795,-500.0,0.00036164,7]
[325255317,1714665034804,-500.0,0.00036164,7]
[325255318,1714665034814,-500.0,0.00036164,7]
[325255319,1714665034824,-208.59810535,0.00036164,7]
[325255320,1714665034834,-500.0,0.00036164,7]
[325255321,1714665034844,-500.0,0.00036164,7]
[325255322,1714665034853,-500.68647619,0.00036164,7]
[325255323,1714665034863,-500.0,0.00036164,7]
[325255324,1714665034873,-500.78298407,0.00036164,7]
[325255325,1714665034883,-500.0,0.00036164,7]
[325255326,1714665034894,-500.68535315,0.00036164,7]
[325255327,1714665034905,-500.0,0.00036164,7]
[325255328,1714665034915,-500.0,0.00036164,7]
[325255329,1714665034924,-500.0,0.00036164,7]
[325255330,1714665034936,-500.0,0.00036164,7]
[325255331,1714665034944,-500.0,0.00036164,7]
[325255332,1714665034954,-504.91523988,0.00036164,7]
[325255333,1714665034963,-500.0,0.00036164,7]
[325255334,1714665034973,-500.0,0.00036164,7]
[325255335,1714665034983,-500.0,0.00036164,7]
[325255336,1714665034993,-500.0,0.00036164,7]
[325255337,1714665035003,-500.0,0.00036164,7]
[325255338,1714665035013,-500.0,0.00036164,7]
[325255339,1714665035023,-500.0,0.00036164,7]
[325255340,1714665035033,-500.15857702,0.00036164,7]
[325255341,1714665035043,-500.0,0.00036164,7]
[325255342,1714665035054,-500.0,0.00036164,7]
[325255343,1714665035064,-500.0,0.00036164,7]
[325255344,1714665035074,-500.0,0.00036164,7]
[325255345,1714665035084,-500.0,0.00036164,7]
[325255346,1714665035093,-500.0,0.00036164,7]
[325255347,1714665035104,-500.0,0.00036164,7]
[325255348,1714665035115,-500.0,0.00036164,7]
[325255349,1714665035126,-500.0,0.00036164,7]
[325255350,1714665035136,-471.2188222,0.00036164,7]
[325255351,1714665035147,-500.0,0.00036164,7]
[325255352,1714665035157,-500.0,0.00036164,7]
[325255353,1714665035167,-500.0,0.00036164,7]
[325255354,1714665035177,-500.0,0.00036164,7]
[325255355,1714665035189,-500.0,0.00036164,7]
[325255356,1714665035200,-458.76541915,0.00036164,7]
[325255357,1714665035210,-500.0,0.00036164,7]
[325255358,1714665035220,-500.0,0.00036164,7]
[325255359,1714665035230,-500.80488072,0.00036164,7]
[325255360,1714665035240,-500.0,0.00036164,7]
[325255361,1714665035251,-582.81058328,0.00036164,7]
[325255362,1714665035261,-500.0,0.00036164,7]
[325255363,1714665035271,-500.0,0.00036164,7]
[325255364,1714665035280,-500.0,0.00036164,7]
[325255365,1714665035290,-500.0,0.00036164,7]
[325255366,1714665035300,-500.0,0.00036164,7]
[325255367,1714665035311,-500.0,0.00036164,7]
[325255368,1714665035321,-500.0,0.00036164,7]
[325255369,1714665035331,-500.59694914,0.00036164,7]
[325255370,1714665035340,-500.0,0.00036164,7]
[325255371,1714665035350,-500.0,0.00036164,7]
[325255372,1714665035359,-500.60225239,0.00036164,7]
[325255373,1714665035369,-500.0,0.00036164,7]
[325255374,1714665035379,-500.0,0.00036164,7]
[325255375,1714665035389,-500.0,0.00036164,7]
[325255376,1714665035400,-629.84926663,0.00036164,7]
[325255377,1714665035409,-500.0,0.00036164,7]
[325255378,1714665035419,-186.2350365,0.00036164,7]
[325255379,1714665035429,-500.0,0.00036164,7]
[325255380,1714665035442,-500.0,0.00036164,7]
[325255381,1714665035452,-500.0,0.00036164,7]
[325255382,1714665035462,-322.81390068,0.00036164,7]
[325255383,1714665035472,-500.0,0.00036164,7]
[325255384,1714665035481,-500.0,0.00036164,7]
[325255385,1714665035491,-500.0,0.00036164,7]
[325255386,1714665035501,-503.66727348,0.00036164,7]
[325255387,1714665035511,-501.06244561,0.00036164,7]
[325255388,1714665035521,-501.68924272,0.00036164,7]
[325255389,1714665035531,-500.0,0.00036164,7]
[325255390,1714665035540,-500.0,0.00036164,7]
[325255391,1714665035550,-500.0,0.00036164,7]
[325255392,1714665035560,-500.0,0.00036164,7]
[325255393,1714665035574,-384.6613178,0.00036164,2]
[325255394,1714665035582,-500.44741949,0.00036164,7]
[325255395,1714665035592,-500.0,0.00036164,7]
[325255396,1714665035602,-1006.06,0.00036164,7]
[325255397,1714665035612,-500.0,0.00036164,7]
[325255398,1714665035621,-500.0,0.00036164,7]
[325255399,1714665035631,-500.0,0.00036164,7]
[325255400,1714665035641,-500.0,0.00036164,7]
[325255401,1714665035651,-1197.3,0.00036164,7]
[325255402,1714665035661,-500.0,0.00036164,7]
[325255403,1714665035671,-555.64,0.00036164,7]
[325255404,1714665035680,-500.0,0.00036164,7]
[325255405,1714665035885,-500.0,0.00036164,7]
[325255406,1714665035931,-500.0,0.00036164,7]
[325255407,1714665035945,-500.52116202,0.00036164,7]
[325255408,1714665035956,-500.0,0.00036164,7]
[325255409,1714665035967,-500.0,0.00036164,7]
[325255410,1714665035978,-500.0,0.00036164,7]
[325255411,1714665035988,-500.0,0.00036164,7]
[325255412,1714665035998,-500.0,0.00036164,7]
[325255413,1714665036008,-500.0,0.00036164,7]
[325255414,1714665036018,-877.03,0.00036164,7]
[325255415,1714665036028,-500.0,0.00036164,7]
[325255416,1714665036037,-629.8,0.00036164,7]
[325255417,1714665036046,-500.0,0.00036164,7]
[325255418,1714665036056,-737.95,0.00036164,7]
[325255419,1714665036066,-500.0,0.00036164,7]
[325255420,1714665036075,-500.0,0.00036164,7]
[325255421,1714665036085,-755.67,0.00036164,7]
[325255422,1714665036094,-500.0,0.00036164,7]
[325255423,1714665036103,-500.0,0.00036164,7]
[325255424,1714665036117,-500.0,0.00036164,7]
[325255425,1714665036126,-500.0,0.00036164,7]
[325255426,1714665036136,-500.0,0.00036164,7]
[325255427,1714665036145,-500.0,0.00036164,7]
[325255428,1714665036155,-500.0,0.00036164,7]
[325255429,1714665036164,-500.0,0.00036164,7]
[325255430,1714665036175,-503.18506523,0.00036164,7]
[325255431,1714665036187,-1016.21,0.00036164,7]
[325255432,1714665036197,-514.46301746,0.00036164,7]
[325255433,1714665036207,-572.56,0.00036164,7]
[325255434,1714665036216,-500.0,0.00036164,7]
[325255435,1714665036226,-500.0,0.00036164,7]
[325255436,1714665036236,-524.00005301,0.00036164,7]
[325255437,1714665036246,-500.0,0.00036164,7]
[325255438,1714665036255,-500.0,0.00036164,7]
[325255439,1714665036265,-500.0,0.00036164,7]
[325255440,1714665036274,-507.93484044,0.00036164,7]
[325255441,1714665036284,-500.0,0.00036164,7]
[325255442,1714665036293,-500.0,0.00036164,7]
[325255443,1714665036302,-500.0,0.00036164,7]
[325255444,1714665036311,-500.0,0.00036164,7]
[325255445,1714665036321,-500.0,0.00036164,7]
[325255446,1714665036330,-500.0,0.00036164,7]
[325255447,1714665036339,-500.0,0.00036164,7]
[325255448,1714665036348,-500.0,0.00036164,7]
[325255449,1714665036358,-500.0,0.00036164,7]
[325255450,1714665036368,-639.49,0.00036164,7]
[325255451,1714665036377,-500.0,0.00036164,7]
[325255452,1714665036386,-500.0,0.00036164,7]
[325255453,1714665036396,-500.0,0.00036164,7]
[325255454,1714665036405,-500.0,0.00036164,7]
[325255455,1714665036415,-500.0,0.00036164,7]
[325255456,1714665036424,-500.0,0.00036164,7]
[325255457,1714665036434,-500.0,0.00036164,7]
[325255458,1714665036444,-757.76,0.00036164,7]
[325255459,1714665036453,-500.0,0.00036164,7]
[325255460,1714665036462,-500.0,0.00036164,7]
[325255461,1714665036472,-461.5935819,0.00036164,2]
[325255462,1714665036481,-500.0,0.00036164,7]
[325255463,1714665036490,-500.0,0.00036164,7]
[325255464,1714665036499,-500.0,0.00036164,7]
[325255465,1714665036509,-500.0,0.00036164,7]
[325255466,1714665036518,-500.97496383,0.00036164,7]
[325255467,1714665036527,-500.0,0.00036164,7]
[325255468,1714665036536,-500.85137327,0.00036164,7]
[325255469,1714665036545,-500.0,0.00036164,7]
[325255470,1714665036556,-500.0,0.00036164,7]
[325255471,1714665036568,-500.0,0.00036164,7]
[325255472,1714665036577,-762.55,0.00036164,7]
[325255473,1714665036587,-500.0,0.00036164,7]
[325255474,1714665036596,-546.57,0.00036164,7]
[325255475,1714665036606,-500.0,0.00036164,7]
[325255476,1714665036616,-500.0,0.00036164,7]
[325255477,1714665036626,-500.0,0.00036164,7]
[325255478,1714665036637,-500.0,0.00036164,7]
[325255479,1714665036647,-500.0,0.00036164,7]
[325255480,1714665036656,-500.0,0.00036164,7]
[325255481,1714665036665,-739.96,0.00036164,7]
[325255482,1714665036675,-500.0,0.00036164,7]
[325255483,1714665036686,-500.0,0.00036164,7]
[325255484,1714665036695,-503.68465298,0.00036164,7]
[325255485,1714665036705,-500.0,0.00036164,7]
[325255486,1714665036715,-500.0,0.00036164,7]
[325255487,1714665036725,-500.0,0.00036164,7]
[325255488,1714665036734,-537.70172085,0.00036164,7]
[325255489,1714665036743,-500.0,0.00036164,7]
[325255490,1714665036752,-500.0,0.00036164,7]
[325255491,1714665036762,-507.63132764,0.00036164,7]
[325255492,1714665036772,-500.0,0.00036164,7]
[325255493,1714665036781,-212.31568979,0.00036164,7]
[325255494,1714665036791,-500.0,0.00036164,7]
[325255495,1714665036800,-500.0,0.00036164,7]
[325255496,1714665036810,-500.70783032,0.00036164,7]
[325255497,1714665036819,-579.17,0.00036164,7]
[325255498,1714665036828,-500.0,0.00036164,7]
[325255499,1714665036838,-500.0,0.00036164,7]
[325255500,1714665036847,-500.0,0.00036164,7]
[325255501,1714665036856,-662.31,0.00036164,7]
[325255502,1714665036867,-500.0,0.00036164,7]
[325255503,1714665036876,-500.0,0.00036164,7]
[325255504,1714665036885,-500.0,0.00036164,7]
[325255505,1714665036895,-500.0,0.00036164,7]
[325255506,1714665036904,-500.0,0.00036164,7]
[325255507,1714665036914,-501.1827763,0.00036164,7]
[325255508,1714665036923,-585.53035919,0.00036164,7]
[325255509,1714665036932,-500.0,0.00036164,7]
[325255510,1714665036944,-500.0,0.00036164,7]
[325255511,1714665036953,-500.0,0.00036164,7]
[325255512,1714665036962,-500.0,0.00036164,7]
[325255513,1714665036972,-500.0,0.00036164,7]
[325255514,1714665036981,-500.0,0.00036164,7]
[325255515,1714665036991,-500.0,0.00036164,7]
[325255516,1714665037000,-500.0,0.00036164,7]
[325255517,1714665037009,-500.0,0.00036164,7]
[325255518,1714665037019,-500.0,0.00036164,7]
[325255519,1714665037028,-500.0,0.00036164,7]
[325255520,1714665037037,-500.0,0.00036164,7]
[325255521,1714665037047,-500.0,0.00036164,7]
[325255522,1714665037056,-500.0,0.00036164,7]
[325255523,1714665037066,-500.0,0.00036164,7]
[325255524,1714665037075,-500.0,0.00036164,7]
[325255525,1714665037085,-500.0,0.00036164,7]
[325255526,1714665037094,-500.0,0.00036164,7]
[325255527,1714665037103,-500.0,0.00036164,7]
[325255528,1714665037113,-491.95770265,0.00036164,7]
[325255529,1714665037123,-464.62086556,0.00036164,7]
[325255530,1714665037132,-500.0,0.00036164,7]
[325255531,1714665037141,-500.0,0.00036164,7]
[325255532,1714665037151,-500.0,0.00036164,7]
[325255533,1714665037160,-333.05843115,0.00036164,7]
[325255534,1714665037170,-500.0,0.00036164,7]
[325255535,1714665037179,-500.0,0.00036164,7]
[325255536,1714665037190,-500.0,0.00036164,7]
[325255537,1714665037199,-200.0,0.00036164,21]
[325255538,1714665037208,-500.0,0.00036164,7]
[325255539,1714665037218,-500.0,0.00036164,7]
[325255540,1714665037227,-500.0,0.00036164,7]
[325255541,1714665037236,-500.0,0.00036164,7]
[325255542,1714665037245,-521.90545705,0.00036164,7]
[325255543,1714665037254,-761.4,0.00036164,7]
[325255544,1714665037263,-500.0,0.00036164,7]
[325255545,1714665037273,-500.0,0.00036164,7]
[325255546,1714665037282,-500.0,0.00036164,2]
[325255547,1714665037292,-506.66161805,0.00036164,7]
[325255548,1714665037301,-500.0,0.00036164,7]
[325255549,1714665037311,-500.0,0.00036164,7]
[325255550,1714665037320,-500.0,0.00036164,7]
[325255551,1714665037330,-500.0,0.00036164,7]
[325255552,1714665037340,-500.0,0.00036164,7]
[325255553,1714665037349,-500.0,0.00036164,7]
[325255554,1714665037359,-500.0,0.00036164,7]
[325255555,1714665037368,-500.0,0.00036164,7]
[325255556,1714665037377,-500.0,0.00036164,7]
[325255557,1714665037387,-500.0,0.00036164,7]
[325255558,1714665037396,-500.0,0.00036164,7]
[325255559,1714665037405,-500.0,0.00036164,7]
[325255560,1714665037415,-500.0,0.00036164,7]
[325255561,1714665037424,-500.0,0.00036164,7]
[325255562,1714665037435,-572.83470276,0.00036164,7]
[325255563,1714665037446,-500.0,0.00036164,7]
[325255564,1714665037457,-500.0,0.00036164,7]
[325255565,1714665037466,-500.0,0.00036164,7]
[325255566,1714665037476,-500.0,0.00036164,7]
[325255567,1714665037486,-500.0,0.00036164,7]
[325255568,1714665037495,-500.0,0.00036164,7]
[325255569,1714665037506,-500.0,0.00036164,7]
[325255570,1714665037516,-500.0,0.00036164,7]
[325255571,1714665037527,-883.09,0.00036164,7]
[325255572,1714665037536,-569.28,0.00036164,7]
[325255573,1714665037547,-500.0,0.00036164,7]
[325255574,1714665037559,-500.0,0.00036164,7]
[325255575,1714665037571,-500.0,0.00036164,7]
[325255576,1714665037582,-500.0,0.00036164,7]
[325255577,1714665037592,-500.0,0.00036164,7]
[325255578,1714665037603,-500.0,0.00036164,7]
[325255579,1714665037613,-500.0,0.00036164,7]
[325255580,1714665037623,-576.31,0.00036164,7]
[325255581,1714665037633,-500.14,0.00036164,7]
[325255582,1714665037643,-521.47,0.00036164,7]
[325255583,1714665037653,-25275.6646741,0.00036164,2]
[325255584,1714665037662,-500.0,0.00036164,7]
[325255585,1714665037672,-877.4,0.00036164,7]
[325255586,1714665037682,-500.0,0.00036164,7]
[325255587,1714665037692,-500.0,0.00036164,7]
[325255588,1714665037701,-500.0,0.00036164,7]
[325255589,1714665037711,-505.22703218,0.00036164,7]
[325255590,1714665037720,-500.0,0.00036164,7]
[325255591,1714665037730,-500.0,0.00036164,7]
[325255592,1714665037743,-500.0,0.00036164,7]
[325255593,1714665037752,-500.0,0.00036164,7]
[325255594,1714665037761,-500.0,0.00036164,7]
[325255595,1714665037772,-500.0,0.00036164,7]
[325255596,1714665037781,-500.0,0.00036164,7]
[325255597,1714665037793,-500.0,0.00036164,7]
[325255598,1714665037803,-500.0,0.00036164,7]
[325255599,1714665037812,-546.92,0.00036164,7]
[325255600,1714665037823,-500.0,0.00036164,7]
[325255601,1714665037832,-500.0,0.00036164,7]
[325255602,1714665037843,-500.0,0.00036164,7]
[325255603,1714665037852,-750.0,0.00036164,30]
[325255604,1714665037861,-649.52719696,0.00036164,7]
[325255605,1714665037870,-500.00396373,0.00036164,7]
[325255606,1714665037879,-500.0,0.00036164,7]
[325255607,1714665037889,-1111.03,0.00036164,7]
[325255608,1714665037898,-500.0,0.00036164,7]
[325255609,1714665037908,-500.0,0.00036164,7]
[325255610,1714665037918,-500.0,0.00036164,7]
[325255611,1714665037927,-500.0,0.00036164,7]
[325255612,1714665037939,-500.0,0.00036164,7]
[325255613,1714665037948,-521.07237324,0.00036164,7]
[325255614,1714665037958,-500.0,0.00036164,7]
[325255615,1714665037968,-500.0,0.00036164,7]
[325255616,1714665037977,-500.0,0.00036164,7]
[325255617,1714665037986,-626.77344506,0.00036164,7]
[325255618,1714665037996,-500.0,0.00036164,7]
[325255619,1714665038006,-500.0,0.00036164,7]
[325255620,1714665038015,-500.0,0.00036164,7]
[325255622,1714665038025,-500.0,0.00036164,7]
[325255624,1714665038035,-500.0,0.00036164,7]
[325255625,1714665038044,-513.85072795,0.00036164,7]
[325255627,1714665038053,-500.0,0.00036164,7]
[325255628,1714665038062,-500.0,0.00036164,7]
[325255629,1714665038071,-500.0,0.00036164,7]
[325255631,1714665038080,-500.0,0.00036164,7]
[325255632,1714665038090,-500.0,0.00036164,7]
[325255634,1714665038099,-502.08875405,0.00036164,7]